bitfinex-derivatives/quotes_SOLF0:USTF0_20250320
["timestamp","ask_amount","ask_price","bid_price","bid_amount"]
[1742477392225,52.8495934,129.73,129.7,0.05532471]
[1742477392429,45.1380934,129.73,129.7,0.05532471]
[1742477392629,7.7119,129.72,129.7,0.05532471]
[1742477393029,45.1380934,129.73,129.7,0.05532471]
[1742477393229,37.48392452,129.73,129.7,0.05532471]
[1742477393425,29.77222452,129.73,129.7,0.05532471]
[1742477393728,29.77222452,129.73,129.7,7.76792471]
[1742477394933,29.77222452,129.73,129.7,0.05532471]
[1742477395327,37.48372452,129.73,129.7,7.76822471]
[1742477395622,29.77222452,129.73,129.7,7.76822471]
[1742477396033,29.77222452,129.73,129.71,7.7123]
[1742477396229,29.77222452,129.73,129.7,0.05532471]
[1742477396429,29.77222452,129.73,129.71,7.7121]
[1742477396734,29.77222452,129.73,129.7,0.05532471]
[1742477396933,29.77222452,129.73,129.71,7.7121]
[1742477397233,37.48342452,129.73,129.71,7.7121]
[1742477397732,29.77222452,129.73,129.71,7.7121]
[1742477399430,0.05222452,129.73,129.72,7.7118]
[1742477399630,0.05222452,129.73,129.7,0.05532471]
[1742477400033,0.05222452,129.73,129.72,7.7118]
[1742477400225,269.68586888,129.79,129.71,4.0255]
[1742477400425,29.56,129.78,129.72,15.36586888]
[1742477400631,15.36586888,129.79,129.71,6.2017]
[1742477400933,29.58,129.78,129.71,6.2017]
[1742477401131,29.58,129.78,129.71,4.0255]
[1742477401325,0.05298541,129.76,129.73,0.05680322]
[1742477401530,7.7109,129.74,129.73,0.05680322]
[1742477402029,29.58,129.75,129.73,7.76770322]
[1742477402228,44.94586888,129.75,129.73,0.05680322]
[1742477402735,0.05298541,129.76,129.73,0.05680322]
[1742477402931,0.05298541,129.76,129.73,34.02840322]
[1742477403338,0.05298541,129.76,129.75,7.71]
[1742477403532,29.66,129.8,129.74,15.36586888]
[1742477403738,29.66,129.8,129.78,7.7079]
[1742477403940,29.66,129.8,129.74,15.36586888]
[1742477404234,380.36586888,129.85,129.76,15.36586888]
[1742477404439,29.66,129.84,129.76,45.02586888]
[1742477404639,0.05891472,129.82,129.79,0.05785279]
[1742477405434,0.05891472,129.82,129.81,7.7064]
[1742477405635,42.44239369,129.88,129.8,15.36586888]
[1742477405837,42.44239369,129.88,129.82,15.36586888]
[1742477406037,42.44239369,129.88,129.84,15.36586888]
[1742477406245,42.44239369,129.88,129.85,29.66]
[1742477406438,42.44239369,129.88,129.85,37.3638]
[1742477406840,42.49835548,129.88,129.85,29.71699049]
[1742477408645,0.05596179,129.88,129.85,29.71699049]
[1742477408840,0.05596179,129.88,129.85,31.70409049]
[1742477409541,0.05596179,129.88,129.85,2.04409049]
[1742477409741,0.05596179,129.88,129.85,0.05699049]
[1742477410340,7.7034,129.87,129.85,0.05699049]
[1742477410541,0.05596179,129.88,129.85,0.05699049]
[1742477412646,15.36586888,129.87,129.79,29.56]
[1742477412843,29.54,129.86,129.79,29.56]
[1742477413047,29.54,129.86,129.78,15.36586888]
[1742477413241,15.36586888,129.85,129.76,269.58586888]
[1742477413450,15.36586888,129.83,129.76,254.22]
[1742477413640,7.7085,129.78,129.76,254.22]
[1742477413842,29.56,129.79,129.78,0.05756369]
[1742477414141,7.7085,129.78,129.73,43.6022]
[1742477414341,7.7085,129.78,129.77,0.0504201]
[1742477414541,0.05790898,129.77,129.74,15.36586888]
[1742477414747,0.05790898,129.77,129.76,0.05444884]
[1742477415360,7.76670898,129.77,129.76,0.05444884]
[1742477418353,7.7115,129.73,129.71,254.22]
[1742477418658,29.46,129.75,129.71,254.22]
[1742477418853,29.5,129.75,129.71,254.22]
[1742477419454,0.05594407,129.74,129.72,0.0519493]
[1742477426867,0.05594407,129.74,129.73,7.7112]
[1742477427063,0.05594407,129.74,129.73,9.7535]
[1742477427265,29.32,129.78,129.73,2.0423]
[1742477427461,1.4429,129.81,129.75,7.7097]
[1742477427663,29.32,129.8,129.75,7.7097]
[1742477427864,29.32,129.8,129.73,2.0423]
[1742477428066,29.32,129.8,129.74,2.0519]
[1742477428261,0.05669191,129.78,129.75,0.05397226]
[1742477428462,0.05669191,129.78,129.77,7.7087]
[1742477432867,0.05669191,129.78,129.75,0.05397226]
[1742477433266,0.05669191,129.78,129.77,7.7088]
[1742477435872,29.16,129.81,129.8,7.707]
[1742477436068,31.79,129.84,129.78,24.64131423]
[1742477436273,19.4,129.84,129.81,24.64131423]
[1742477436565,42.44239369,129.91,129.83,24.64131423]
[1742477436772,42.44239369,129.91,129.84,254.3]
[1742477436972,42.44239369,129.91,129.85,29.24]
[1742477437174,0.05638676,129.89,129.86,0.05585429]
[1742477437572,0.05638676,129.89,129.87,7.7024]
[1742477437775,0.05638676,129.89,129.86,0.05585429]
[1742477438577,0.05638676,129.89,129.88,7.7023]
[1742477439775,30.852,129.94,129.88,29.2]
[1742477439965,14.042,129.94,129.88,29.2]
[1742477440169,43.222,129.94,129.88,29.2]
[1742477440572,12.39,129.94,129.88,29.2]
[1742477440969,12.39,129.94,129.9,0.04983376]
[1742477441274,0.05276766,129.92,129.9,0.04983376]
[1742477442174,0.05276766,129.92,129.91,7.7005]
[1742477443270,0.05276766,129.92,129.9,7.75063376]
[1742477443575,0.05276766,129.92,129.9,0.04983376]
[1742477444074,0.05276766,129.92,129.91,7.7005]
[1742477446671,28.9,129.97,129.9,254.18983376]
[1742477446875,28.9,129.97,129.9,258.45403376]
[1742477447076,28.9,129.97,129.91,24.64131423]
[1742477447273,28.9,129.97,129.92,29.08]
[1742477447876,0.05257104,129.96,129.93,0.04961728]
[1742477448074,0.05257104,129.96,129.93,7.74851728]
[1742477448474,0.05257104,129.96,129.93,0.04961728]
[1742477449369,0.05257104,129.96,129.93,7.74891728]
[1742477449570,0.05257104,129.96,129.93,0.04961728]
[1742477450775,0.05257104,129.96,129.93,24.69093151]
[1742477451173,28.9,129.97,129.96,7.6975]
[1742477451375,28.9,129.97,129.95,29.02]
[1742477451676,7.6969,129.98,129.95,29.02]
[1742477452077,29.02,130.01,129.95,29.02]
[1742477452275,7.74951845,129.98,129.95,0.05036737]
[1742477452477,0.05291845,129.98,129.95,0.05036737]
[1742477452672,29.05291845,129.98,129.95,0.05036737]
[1742477453079,7.6975,129.96,129.95,0.05036737]
[1742477454485,7.6973,129.97,129.95,0.05036737]
[1742477454681,29.05291845,129.98,129.95,7.74846737]
[1742477454880,29.05291845,129.98,129.95,0.05036737]
[1742477455886,29.05291845,129.98,129.96,7.6972]
[1742477456284,0.05291845,129.98,129.97,7.697]
[1742477457988,0.05291845,129.98,129.96,36.6574]
[1742477458189,0.05291845,129.98,129.96,28.96]
[1742477458991,0.05291845,129.98,129.96,36.6573]
[1742477459183,0.05291845,129.98,129.96,28.96]
[1742477460590,0.05291845,129.98,129.95,0.05036737]
[1742477461689,15.4031752,129.98,129.95,0.05036737]
[1742477461893,7.6975,129.96,129.95,0.05036737]
[1742477462083,36.5975,129.96,129.95,0.05036737]
[1742477462590,51.95025675,129.96,129.9,254.14]
[1742477462783,51.95025675,129.96,129.87,46.40065675]
[1742477462784,44.25025675,129.96,129.87,46.40065675]
[1742477462983,44.25025675,129.96,129.9,7.7009]
[1742477463183,28.9,129.96,129.9,7.7009]
[1742477463385,28.9,129.96,129.91,7.7002]
[1742477463586,0.05168417,129.93,129.91,7.7002]
[1742477464194,0.05168417,129.93,129.9,0.0497198]
[1742477464396,28.93168417,129.93,129.9,0.0497198]
[1742477464697,36.63128417,129.93,129.9,0.0497198]
[1742477464898,36.63128417,129.93,129.9,7.7505198]
[1742477465195,7.6999,129.92,129.9,0.0497198]
[1742477465397,28.93168417,129.93,129.9,0.0497198]
[1742477465890,0.05168417,129.93,129.9,0.0497198]
[1742477466497,28.92,129.92,129.9,7.7504198]
[1742477466999,28.92,129.92,129.9,0.0497198]
[1742477467499,0.05168417,129.93,129.9,0.0497198]
[1742477467996,0.05168417,129.93,129.92,7.6999]
[1742477469092,0.05168417,129.93,129.9,0.0497198]
[1742477469293,28.97168417,129.93,129.9,0.0497198]
[1742477469699,7.7002,129.92,129.9,0.0497198]
[1742477469900,28.97168417,129.93,129.9,0.0497198]
[1742477470095,28.97168417,129.93,129.9,7.7505198]
[1742477470290,28.97168417,129.93,129.9,0.0497198]
[1742477470497,0.05168417,129.93,129.9,0.0497198]
[1742477470692,0.05168417,129.93,129.92,7.6999]
[1742477473100,28.9,129.99,129.96,7.6975]
[1742477473699,28.9,129.99,129.91,57.58857614]
[1742477474200,0.05802034,129.96,129.95,7.6976]
[1742477475701,63.9349,130.01,129.98,7.6959]
[1742477475901,63.9349,130.01,129.94,28.88]
[1742477476105,27.36,130.01,129.95,278.56327614]
[1742477476404,56.22,130.01,129.95,253.98]
[1742477476603,7.6972,129.97,129.95,253.98]
[1742477476812,28.88,129.98,129.95,261.6778]
[1742477477106,0.05176513,129.97,129.95,261.73293344]
[1742477477302,0.05176513,129.97,129.95,254.03513344]
[1742477477908,7.74896513,129.97,129.95,254.03513344]
[1742477478108,0.05176513,129.97,129.95,254.03513344]
[1742477478308,28.86,129.96,129.95,0.05513344]
[1742477478508,36.5575,129.96,129.95,0.05513344]
[1742477478808,28.86,129.96,129.95,0.05513344]
[1742477479515,36.5575,129.96,129.95,0.05513344]
[1742477480415,28.86,129.96,129.9,253.98]
[1742477480614,28.86,129.96,129.87,4.1779]
[1742477480819,2.1769,129.95,129.87,11.8804]
[1742477481018,2.1769,129.95,129.87,4.1779]
[1742477481414,7.7014,129.9,129.87,4.1779]
[1742477481610,28.91802652,129.92,129.87,4.1779]
[1742477481809,28.91802652,129.92,129.89,7.7016]
[1742477482216,28.91802652,129.92,129.87,4.23610201]
[1742477482415,0.05802652,129.92,129.88,53.44327614]
[1742477483319,0.05802652,129.92,129.91,7.7005]
[1742477484215,0.05802652,129.92,129.9,0.05272686]
[1742477484422,61.16130266,129.92,129.82,4.2834]
[1742477484616,2.0014,129.91,129.82,4.2834]
[1742477484812,36.7214,129.9,129.84,24.58327614]
[1742477485017,29.02,129.9,129.84,24.58327614]
[1742477485215,29.02,129.89,129.84,24.58327614]
[1742477485417,29.04,129.91,129.84,278.58327614]
[1742477485619,0.05759024,129.88,129.85,0.0585808]
[1742477485816,36.7402,129.92,129.88,7.7019]
[1742477486018,12.37,129.89,129.88,7.7019]
[1742477486222,12.37,129.89,129.86,29.04]
[1742477486521,12.37,129.89,129.88,7.7023]
[1742477486723,0.05036678,129.91,129.88,24.58327614]
[1742477486926,0.05036678,129.91,129.89,29.02]
[1742477487821,0.05036678,129.91,129.87,29.07773328]
[1742477488026,7.7014,129.9,129.87,36.78043328]
[1742477488419,7.7014,129.9,129.87,0.05773328]
[1742477488623,0.05036678,129.91,129.87,0.05773328]
[1742477489216,29.02,129.9,129.87,0.05773328]
[1742477489622,31.1089,129.9,129.87,0.05773328]
[1742477489923,7.7023,129.88,129.87,0.05773328]
[1742477490122,31.1089,129.9,129.81,29.04]
[1742477490324,29.04,129.89,129.82,7.7055]
[1742477490526,53.62327614,129.89,129.82,7.7055]
[1742477490721,53.62327614,129.89,129.79,254.02]
[1742477491025,53.62327614,129.89,129.8,29.02]
[1742477491326,0.05736232,129.85,129.83,0.05755044]
[1742477496727,0.05736232,129.85,129.84,7.7047]
[1742477497820,28.98,129.91,129.84,53.54327614]
[1742477498022,7.7018,129.89,129.84,53.54327614]
[1742477498219,28.98,129.91,129.86,7.7034]
[1742477498423,28.98,129.91,129.84,28.96]
[1742477498625,28.98,129.91,129.82,53.56327614]
[1742477498924,0.0587698,129.88,129.85,0.05491761]
[1742477499140,29.0387698,129.88,129.85,0.05491761]
[1742477499522,7.7035,129.86,129.85,0.05491761]
[1742477500128,7.7031,129.87,129.85,0.05491761]
[1742477500330,29.0387698,129.88,129.85,0.05491761]
[1742477500630,0.0587698,129.88,129.85,0.05491761]
[1742477500832,0.0587698,129.88,129.87,7.7029]
[1742477502034,0.0587698,129.88,129.86,7.7032]
[1742477502230,0.0587698,129.88,129.85,29.05491761]
[1742477502629,0.0587698,129.88,129.87,7.7029]
[1742477503439,365.0,129.94,129.92,7.6995]
[1742477503730,2.0583,129.96,129.89,28.96]
[1742477503936,39.57059842,129.97,129.94,7.6987]
[1742477504334,47.26779842,129.97,129.94,7.6987]
[1742477504532,10.61059842,129.97,129.92,24.58327614]
[1742477504830,0.05280291,129.97,129.94,24.63331639]
[1742477505035,0.05280291,129.97,129.96,7.6975]
[1742477505224,19.57,129.98,129.95,29.0]
[1742477505430,19.62368566,129.98,129.95,29.0]
[1742477505732,19.62368566,129.98,129.97,7.697]
[1742477507736,375.61059842,130.03,130.0,7.6951]
[1742477507933,10.61059842,130.03,129.99,28.96]
[1742477508129,10.61059842,130.03,130.0,53.56327614]
[1742477508330,10.61059842,130.03,130.02,7.694]
[1742477508735,4.138,130.07,130.02,7.6939]
[1742477509033,0.0534508,130.04,130.01,29.03621895]
[1742477509235,44.41079369,130.11,130.02,24.58327614]
[1742477509436,42.44239369,130.11,130.04,24.58327614]
[1742477509636,7.6897,130.1,130.05,28.98]
[1742477509937,42.44239369,130.11,130.05,28.98]
[1742477510334,71.42239369,130.11,130.05,28.98]
[1742477510535,0.04986964,130.09,130.07,0.05802536]
[1742477510935,7.6904,130.08,130.07,0.05802536]
[1742477511739,0.04986964,130.09,130.02,282.98]
[1742477512039,28.96,130.08,130.02,282.98]
[1742477512241,7.6913,130.07,130.02,282.98]
[1742477512443,28.96,130.08,130.02,290.6738]
[1742477512637,28.96,130.08,130.02,282.98]
[1742477513142,0.05891394,130.06,130.04,0.05725311]
[1742477516440,0.05891394,130.06,130.05,7.6922]
[1742477516643,28.94,130.1,130.04,28.99725311]
[1742477516841,28.94,130.1,130.04,28.94]
[1742477517036,4.2439,130.12,130.04,28.94]
[1742477517240,36.6289,130.11,130.04,28.94]
[1742477517443,36.6289,130.11,130.06,7.6913]
[1742477517642,36.6289,130.11,130.04,28.94]
[1742477517852,7.73901506,130.1,130.07,0.0485215]
[1742477518845,0.04961506,130.1,130.07,0.0485215]
[1742477519049,0.04961506,130.1,130.07,28.9685215]
[1742477519447,0.04961506,130.1,130.09,7.6899]
[1742477520546,0.04961506,130.1,130.07,28.9685215]
[1742477520745,0.04961506,130.1,130.07,0.0485215]
[1742477521651,0.04961506,130.1,130.07,7.7393215]
[1742477521951,0.04961506,130.1,130.07,0.0485215]
[1742477522151,0.04961506,130.1,130.09,7.6899]
[1742477528154,28.84,130.17,130.08,307.20327614]
[1742477528648,28.84,130.17,130.11,7.6886]
[1742477528845,7.6872,130.14,130.11,7.6886]
[1742477529048,28.84,130.17,130.08,282.62]
[1742477529246,0.05004242,130.14,130.11,0.05263651]
[1742477530154,0.05004242,130.14,130.12,7.6878]
[1742477530557,0.05004242,130.14,130.11,0.05263651]
[1742477530747,7.6878,130.13,130.11,0.05263651]
[1742477530956,28.91004242,130.14,130.11,0.05263651]
[1742477531257,7.6881,130.12,130.11,0.05263651]
[1742477531459,28.91004242,130.14,130.08,253.72]
[1742477531658,28.86,130.14,130.08,253.72]
[1742477532453,7.6884,130.12,130.08,253.72]
[1742477532652,0.05484243,130.12,130.1,0.04962453]
[1742477532857,0.05484243,130.12,130.11,7.6887]
[1742477534252,0.05484243,130.12,130.1,0.04962453]
[1742477534253,0.05484243,130.12,130.1,7.73862453]
[1742477534457,0.05484243,130.12,130.1,0.04962453]
[1742477534658,0.05484243,130.12,130.1,28.88962453]
[1742477534850,0.05484243,130.12,130.11,7.6887]
[1742477536355,28.82,130.16,130.1,28.88962453]
[1742477536953,28.82,130.16,130.1,46.75270978]
[1742477537154,36.506,130.16,130.1,46.75270978]
[1742477537351,7.686,130.16,130.1,46.75270978]
[1742477537547,0.05834043,130.14,130.12,17.86308525]
[1742477537857,28.84,130.2,130.13,28.84]
[1742477538050,17.86308525,130.19,130.13,28.84]
[1742477538245,17.86308525,130.19,130.11,28.84]
[1742477538847,7.687,130.14,130.11,28.84]
[1742477539047,28.91846716,130.16,130.14,0.04967385]
[1742477539255,28.91846716,130.16,130.11,28.84]
[1742477539560,7.6867,130.15,130.14,0.05206697]
[1742477540054,7.6885,130.12,130.08,279.27338525]
[1742477540260,28.86,130.13,130.08,253.72]
[1742477541159,7.6884,130.12,130.09,7.6895]
[1742477541459,0.0561631,130.12,130.09,0.05636745]
[1742477541860,7.689,130.11,130.09,0.05636745]
[1742477542561,7.7444631,130.12,130.09,7.74616745]
[1742477543161,7.6887,130.11,130.09,0.05636745]
[1742477543361,0.0561631,130.12,130.09,0.05636745]
[1742477543762,0.0561631,130.12,130.11,7.6887]
[1742477544460,6.31e-05,130.12,130.11,7.6887]
[1742477544958,36.5446,130.18,130.15,7.6863]
[1742477545358,7.6852,130.17,130.14,7.6864]
[1742477545554,28.86,130.18,130.13,46.70308525]
[1742477545757,28.84,130.19,130.13,46.70308525]
[1742477545954,0.05598072,130.17,130.15,7.73693802]
[1742477546161,0.05598072,130.17,130.15,0.05093802]
[1742477547263,7.6857,130.16,130.15,0.05093802]
[1742477547662,36.5457,130.16,130.15,0.05093802]
[1742477547855,28.86,130.16,130.15,0.05093802]
[1742477548059,0.05598072,130.17,130.15,0.05093802]
[1742477548458,7.74148072,130.17,130.15,0.05093802]
[1742477548766,0.05598072,130.17,130.15,0.05093802]
[1742477549868,7.74108072,130.17,130.15,0.05093802]
[1742477550063,0.05598072,130.17,130.15,0.05093802]
[1742477551370,7.6857,130.16,130.15,0.05093802]
[1742477551560,0.05598072,130.17,130.15,0.05093802]
[1742477553672,7.74148072,130.17,130.15,0.05093802]
[1742477553869,0.05598072,130.17,130.15,0.05093802]
[1742477554273,0.05598072,130.17,130.16,7.6857]
[1742477555270,0.05598072,130.17,130.15,7.73693802]
[1742477555863,7.6857,130.16,130.15,0.05093802]
[1742477556062,28.82,130.16,130.1,253.66]
[1742477556565,28.82,130.16,130.12,7.6876]
[1742477556770,28.82,130.16,130.1,253.66]
[1742477556965,28.82,130.16,130.09,46.66308525]
[1742477557370,0.05451586,130.14,130.11,0.05607696]
[1742477557572,0.05451586,130.14,130.13,7.6875]
[1742477557772,0.05451586,130.14,130.13,25.55058525]
[1742477557966,0.05451586,130.14,130.12,28.78]
[1742477558171,0.05451586,130.14,130.11,0.05607696]
[1742477558768,2.12001586,130.14,130.11,0.05607696]
[1742477559274,7.6878,130.13,130.11,0.05607696]
[1742477559473,2.12001586,130.14,130.11,0.05607696]
[1742477560469,0.05451586,130.14,130.11,17.91916221]
[1742477560670,0.05451586,130.14,130.13,7.6875]
[1742477563176,0.05451586,130.14,130.12,7.6878]
[1742477563477,0.05451586,130.14,130.11,17.91916221]
[1742477563877,0.05451586,130.14,130.11,0.05607696]
[1742477564375,7.6881,130.12,130.11,0.05607696]
[1742477564577,0.05451586,130.14,130.11,0.05607696]
[1742477565574,0.05451586,130.14,130.11,17.91916221]
[1742477566981,0.05451586,130.14,130.12,7.6878]
[1742477567278,0.05451586,130.14,130.11,17.91916221]
[1742477567480,7.74151586,130.14,130.11,0.05607696]
[1742477567680,0.05451586,130.14,130.11,0.05607696]
[1742477569081,0.05451586,130.14,130.12,7.6878]
[1742477569581,7.74171586,130.14,130.11,7.74427696]
[1742477569880,0.05451586,130.14,130.11,0.05607696]
[1742477570277,0.05451586,130.14,130.12,7.6877]
[1742477570473,0.05451586,130.14,130.11,0.05607696]
[1742477570784,7.6878,130.13,130.11,0.05607696]
[1742477570987,28.94,130.13,130.11,0.05607696]
[1742477571484,7.6881,130.12,130.11,0.05607696]
[1742477572591,38.7364,130.13,130.11,0.05607696]
[1742477572796,31.0486,130.13,130.11,0.05607696]
[1742477572999,7.6881,130.12,130.11,0.05607696]
[1742477573194,31.0486,130.13,130.11,0.05607696]
[1742477573895,28.94,130.13,130.11,0.05607696]
[1742477574499,28.94,130.13,130.12,7.6881]
[1742477575797,28.94,130.13,130.04,17.86308525]
[1742477576295,28.94,130.13,130.05,7.692]
[1742477576695,7.6903,130.09,130.04,25.55528525]
[1742477576900,36.6303,130.09,130.08,0.05768904]
[1742477577096,28.94,130.09,130.03,17.86308525]
[1742477577292,7.6904,130.08,130.07,0.0487728]
[1742477577497,7.6904,130.08,130.02,4.0312]
[1742477577695,7.6904,130.08,130.06,0.05196332]
[1742477577896,7.691,130.07,130.06,0.05196332]
[1742477581103,0.05203204,130.08,130.06,7.74306332]
[1742477581302,0.05203204,130.08,130.06,0.05196332]
[1742477582104,7.691,130.07,130.06,0.05196332]
[1742477588604,7.6926,130.05,130.02,7.6937]
[1742477588808,28.9,130.04,130.02,7.6937]
[1742477589301,28.9,130.04,130.01,253.62]
[1742477589709,36.5932,130.04,130.01,261.3141]
[1742477589908,36.64282635,130.04,130.01,261.37166905]
[1742477590110,28.94962635,130.04,130.02,7.694]
[1742477590306,0.04962635,130.04,130.02,17.86308525]
[1742477590507,0.04962635,130.04,130.02,46.78308525]
[1742477590711,2.1271,130.11,130.02,46.78308525]
[1742477590712,9.8162,130.11,130.02,46.78308525]
[1742477590916,38.8162,130.11,130.05,17.86308525]
[1742477591209,7.6902,130.09,130.06,7.6911]
[1742477591407,31.1271,130.11,130.05,17.86308525]
[1742477591607,31.1271,130.11,130.04,7.6928]
[1742477591813,0.05353375,130.09,130.01,300.50308525]
[1742477592014,29.02,130.08,130.06,0.0581702]
[1742477592511,7.691,130.07,130.06,0.0581702]
[1742477593207,46.93762903,130.08,129.99,19.83628525]
[1742477593406,21.84618525,130.06,129.98,31.0069]
[1742477593608,21.84618525,130.06,130.01,7.6942]
[1742477593609,29.0,130.05,130.01,7.6942]
[1742477594101,7.6931,130.04,130.02,7.6938]
[1742477594306,0.05467721,130.04,130.02,0.05215334]
[1742477595411,0.05467721,130.04,130.03,25.55648525]
[1742477596610,365.0,130.09,130.03,46.86308525]
[1742477596807,29.0,130.1,130.05,17.86308525]
[1742477597011,29.0,130.1,130.09,7.6899]
[1742477597211,29.0,130.11,130.05,17.86308525]
[1742477597517,36.6891,130.11,130.05,17.86308525]
[1742477597718,0.05684709,130.09,130.07,0.05097055]
[1742477598211,0.05684709,130.09,130.08,7.6904]
[1742477598413,29.0,130.15,130.07,17.9140558]
[1742477598717,29.0,130.15,130.1,17.86308525]
[1742477598909,29.0,130.15,130.09,29.0]
[1742477599110,7.6877,130.13,130.1,7.6889]
[1742477599317,29.0,130.15,130.08,17.86308525]
[1742477599514,29.0,130.15,130.1,0.04909587]
[1742477599515,0.05009698,130.13,130.1,0.04909587]
[1742477599817,7.73789698,130.13,130.1,7.73799587]
[1742477600013,7.73789698,130.13,130.1,0.04909587]
[1742477600811,0.05009698,130.13,130.1,0.04909587]
[1742477601317,0.05009698,130.13,130.1,7.73819587]
[1742477601715,0.05009698,130.13,130.1,0.04909587]
[1742477601911,7.6884,130.12,130.1,0.04909587]
[1742477603015,29.04,130.12,130.1,0.04909587]
[1742477603422,29.04,130.12,130.04,21.97918525]
[1742477603720,2.1105,130.11,130.04,21.97918525]
[1742477603926,7.6908,130.08,130.05,7.6918]
[1742477604114,29.04,130.09,130.05,7.6918]
[1742477604315,29.04,130.09,130.04,21.97918525]
[1742477604316,36.7301,130.09,130.04,21.97918525]
[1742477604618,0.0558581,130.08,130.06,17.86308525]
[1742477604820,29.06,130.13,130.06,17.86308525]
[1742477605021,29.06,130.13,130.08,17.86308525]
[1742477605917,0.05216368,130.12,130.09,0.05850108]
[1742477606516,7.6893,130.1,130.09,0.05850108]
[1742477606816,29.06,130.1,130.02,271.62308525]
[1742477607017,29.06,130.1,130.02,279.31678525]
[1742477607018,7.6928,130.05,130.02,279.31678525]
[1742477607621,36.7718,130.06,130.03,7.6931]
[1742477607816,29.08,130.06,130.02,271.62308525]
[1742477608121,29.12841884,130.06,130.03,0.05382507]
[1742477608721,29.12841884,130.06,130.05,7.6922]
[1742477609217,0.04841884,130.06,130.05,7.6922]
[1742477609524,29.06,130.1,130.04,30.6009911]
[1742477609918,29.06,130.1,130.04,32.7140911]
[1742477610518,29.06,130.1,130.09,7.6899]
[1742477610722,29.06,130.1,130.06,0.05164601]
[1742477611121,0.05525523,130.11,130.07,29.02]
[1742477611923,7.74425523,130.11,130.07,29.02]
[1742477612224,0.05525523,130.11,130.07,29.02]
[1742477612622,7.74405523,130.11,130.07,29.02]
[1742477612923,0.05525523,130.11,130.07,29.02]
[1742477613423,0.05525523,130.11,130.09,7.6895]
[1742477613724,0.05525523,130.11,130.09,7.74679429]
[1742477613930,0.05525523,130.11,130.09,0.05729429]
[1742477614125,7.74395523,130.11,130.09,0.05729429]
[1742477614427,0.05525523,130.11,130.09,0.05729429]
[1742477614926,7.74425523,130.11,130.09,0.05729429]
[1742477615131,0.05525523,130.11,130.09,0.05729429]
[1742477615923,0.05525523,130.11,130.1,7.6893]
[1742477619429,28.98,130.15,130.1,7.6893]
[1742477619430,28.98,130.15,130.1,28.6128911]
[1742477619931,28.98,130.15,130.13,7.6875]
[1742477620125,6.2912,130.18,130.1,28.6128911]
[1742477620321,365.0,130.21,130.12,28.6128911]
[1742477620626,0.05434353,130.15,130.14,28.6128911]
[1742477620831,0.04843841,130.17,130.14,28.6128911]
[1742477621132,29.02843841,130.17,130.13,0.05751591]
[1742477621534,7.6869,130.14,130.13,0.05751591]
[1742477621734,29.02843841,130.17,130.13,0.05751591]
[1742477624132,7.6869,130.14,130.13,0.05751591]
[1742477624832,7.6866,130.15,130.13,0.05751591]
[1742477625032,29.02843841,130.17,130.13,0.05751591]
[1742477625432,7.6869,130.14,130.13,0.05751591]
[1742477626136,7.6868,130.15,130.13,0.05751591]
[1742477627938,7.686,130.16,130.13,7.74461591]
[1742477628135,29.02843841,130.17,130.13,0.05751591]
[1742477628331,0.04843841,130.17,130.13,0.05751591]
[1742477628638,0.04843841,130.17,130.16,7.6857]
[1742477628838,0.04843841,130.17,130.14,28.6128911]
[1742477629132,0.04843841,130.17,130.13,2.21701591]
[1742477629339,0.04843841,130.17,130.14,28.6128911]
[1742477629638,28.94,130.21,130.15,28.94]
[1742477629838,28.94,130.21,130.15,31.0304]
[1742477630034,4.2972,130.23,130.18,7.6842]
[1742477630234,28.94,130.22,130.18,7.6842]
[1742477630431,28.92,130.22,130.15,31.0304]
[1742477630835,0.05752621,130.2,130.17,0.0582276]
[1742477631237,0.05752621,130.2,130.18,7.6845]
[1742477631434,0.05752621,130.2,130.17,17.90149203]
[1742477631635,0.05752621,130.2,130.17,25.58629203]
[1742477631836,0.05752621,130.2,130.17,17.90149203]
[1742477632241,86.39134912,130.28,130.19,17.84326443]
[1742477632442,28.9,130.26,130.21,17.84326443]
[1742477633338,28.9,130.26,130.22,7.6819]
[1742477633543,0.05188298,130.25,130.22,7.73082943]